{"text_format":"1","workbook":"xlsx","n_sheets":4,"sheets":["gerechten","ingrediënten","menukeuze","printblad"],"not_rendered":{"charts":0,"images":26,"macros":1,"external_links":0,"defined_names":1,"comments":0,"pivot_tables":0},"unopened":[],"bounds":{"document_bytes":16777216,"sheet_cells":100000,"rows_first":2000,"rows_last":500,"rows_between":2000,"halvings":0,"cell_chars":16384,"cell_head_chars":4096},"cells_cut":0,"cells_raw":0,"read":"whole","date_system":"1900"}

{"sheet":"gerechten","index":0,"n_rows":55,"n_cols":22,"rows_kept":55,"cut":false,"hidden":false,"merged":[[5,2,5,22],[2,5,2,8],[3,5,3,8],[7,2,15,4],[7,5,15,7],[7,8,15,10],[7,11,15,13],[7,14,15,16],[7,17,15,19],[2,21,2,22],[54,17,56,19],[7,20,15,22],[35,2,37,4],[35,5,37,7],[16,20,18,22],[16,2,18,4],[16,5,18,7],[16,8,18,10],[16,11,18,13],[16,14,18,16],[16,17,18,19],[54,2,56,4],[54,5,56,7],[54,8,56,10],[54,11,56,13],[54,14,56,16],[35,8,37,10],[35,11,37,13],[35,14,37,16],[35,17,37,19],[35,20,37,22],[24,2,24,22],[26,20,34,22],[45,2,53,4],[45,5,53,7],[45,8,53,10],[45,11,53,13],[45,14,53,16],[45,17,53,19],[45,20,53,22],[43,2,43,19],[26,2,34,4],[26,5,34,7],[26,8,34,10],[26,11,34,13],[26,14,34,16],[26,17,34,19]]}
[]
[]
[null,null,"Naam",null,null,null,null,null,null,null,null,null,null,null,null,null,null,null,null,null,null,"opdracht 1"]
[null,null,"Klas"]
[]
[null,null,"voorgerechten"]
[]
[]
[]
[]
[]
[]
[]
[]
[]
[]
[null,null,"bieten-carpaccio met geitenkaas en spekjes",null,null,"spruitjessalade met honing-mosterddressing en walnoten",null,null,"Japanse salade van avocado, zalm, rijst en soja",null,null,"groene salade van groene asperge, doperwten, courgette en rucola",null,null,"veldsla met groene asperges, komkommer en kruidencrème ",null,null,"tomatentartaar met augurk en mosterd",null,null,"gebakken tempeh-saté met warme gele rijst"]
[]
[]
[]
[]
[]
[]
[]
[null,null,"tussengerechten"]
[]
[]
[]
[]
[]
[]
[]
[]
[]
[]
[null,null,"doperwtensoep met \nbosui en munt ",null,null,"hartige taart van prei, venkel en spekjes",null,null,"pompoensoep met zoete aardappel en kurkuma",null,null,"koude salade van courgette-spaghetti met pesto en tomaten",null,null,"bloemkoolsoep \nmet crostini",null,null,"schorseneren-soep \nmet croutons",null,null,"soep van gepofte mais \nmet blokjes gerookte kip"]
[]
[]
[]
[]
[]
[]
[]
[null,null,"hoofdgerechten"]
[]
[]
[]
[]
[]
[]
[]
[]
[]
[]
[null,null,"bloemkool-maistaart \nmet cherrytomaatjes en mosterd",null,null,"pizza met witlof, brie, honing en cashewnoten",null,null,"oosterse aubergine-schotel met soja en sesam uit de oven",null,null,"gepocheerde zalm met wortel, broccoli, aardappel-puree en wittewijnsaus",null,null,"tagliatelle met garnalen, basilicum en roomsaus",null,null,"met kaas gevulde ravioli in tomaten-kruidensaus"]

{"sheet":"ingrediënten","index":1,"n_rows":74,"n_cols":19,"rows_kept":74,"cut":false,"hidden":true,"merged":[[2,5,2,8],[3,5,3,8],[5,2,5,16],[7,2,15,4],[7,5,15,7],[7,8,15,10],[7,11,15,13],[7,14,15,16],[35,14,37,16],[16,14,18,16],[24,2,24,16],[26,2,34,4],[26,5,34,7],[26,8,34,10],[26,11,34,13],[26,14,34,16],[16,2,18,4],[16,5,18,7],[16,8,18,10],[16,11,18,13],[45,2,53,4],[45,5,53,7],[45,8,53,10],[45,11,53,13],[35,2,37,4],[35,5,37,7],[35,8,37,10],[35,11,37,13],[64,17,72,19],[54,2,56,4],[54,5,56,7],[54,8,56,10],[54,11,56,13],[2,18,2,19],[64,20,72,20],[73,2,75,4],[73,5,75,7],[73,8,75,10],[73,11,75,13],[73,14,75,16],[73,17,75,19],[45,14,53,16],[43,2,43,13],[62,2,62,19],[64,2,72,4],[64,5,72,7],[64,8,72,10],[64,11,72,13],[64,14,72,16]]}
[]
[]
[null,null,"Kandidaatnaam:",null,null,{"$f":"gerechten!F3","v":0},null,null,null,null,null,null,null,null,null,null,null,null,"werkblad 2"]
[null,null,"Kandidaatnummer:",null,null,{"$f":"gerechten!F4","v":0}]
[]
[null,null,"voorgerechten"]
[]
[]
[]
[]
[]
[]
[]
[]
[]
[]
[null,null,"spruitjessalade met honing-mosterddressing en walnoten",null,null,"groene salade van groene asperge, doperwten, courgette en rucola",null,null,"veldsla met groene asperges, komkommer en kruidencrème ",null,null,"tomatentartaar met augurk en mosterd",null,null,"gebakken tempeh-saté met warme gele rijst"]
[]
[]
[]
[]
[]
[]
[]
[null,null,"tussengerechten"]
[]
[]
[]
[]
[]
[]
[]
[]
[]
[]
[null,null,"doperwtensoep met\nbosui en munt ",null,null,"pompoensoep met zoete aardappel en kurkuma",null,null,"koude salade van courgette-spaghetti met pesto en tomaten",null,null,"bloemkoolsoep\nmet crostini",null,null,"schorseneren-soep\nmet croutons"]
[]
[]
[]
[]
[]
[]
[]
[null,null,"hoofdgerechten"]
[]
[]
[]
[]
[]
[]
[]
[]
[]
[]
[null,null,"bloemkool-maistaart\nmet cherrytomaatjes en mosterd",null,null,"pizza met witlof, brie, honing en cashewnoten",null,null,"oosterse aubergine-schotel met soja en sesam uit de oven",null,null,"met kaas gevulde ravioli in tomaten-kruidensaus"]
[]
[]
[]
[]
[]
[]
[]
[null,null,"nagerechten"]
[]
[]
[]
[]
[]
[]
[]
[]
[]
[]
[null,null,"gepocheerde peer \nmet vanille-ijs en amandelkruimels",null,null,"panna cotta met rode zomervruchten ",null,null,"taartje van vijgen",null,null,"cheesecake appel en karamel",null,null,"kaasplankje met pruimencompote",null,null,"chocoladetaart met karamel en amandel"]

{"sheet":"menukeuze","index":2,"n_rows":49,"n_cols":24,"rows_kept":49,"cut":false,"hidden":true,"merged":[[48,2,48,4],[37,2,37,12],[44,2,44,12],[38,2,38,4],[39,2,39,4],[40,2,40,4],[41,2,41,4],[38,5,38,12],[39,5,39,12],[40,5,40,12],[41,5,41,12],[45,5,45,12],[46,5,46,12],[48,5,48,12],[45,2,45,4],[46,2,46,4],[47,2,47,4],[47,5,47,12],[22,18,30,20],[31,12,33,14],[31,15,33,17],[31,18,33,20],[31,2,33,4],[31,5,33,7],[31,8,33,10],[22,12,30,14],[22,15,30,17],[22,2,30,4],[22,5,30,7],[22,8,30,10],[16,2,18,4],[16,5,18,7],[16,8,18,10],[20,2,20,10],[20,12,20,20],[2,5,2,8],[3,5,3,8],[5,2,5,10],[7,2,15,4],[7,5,15,7],[7,8,15,10],[2,19,2,20],[5,12,5,20],[7,15,15,17],[7,18,15,20],[16,12,18,14],[16,15,18,17],[16,18,18,20],[7,12,15,14]]}
[null,null,null,null,null,null,null,null,null,null,null,null,null,null,null,null,null,null,null,null,null,null,null,"maak keuze"]
[null,null,null,null,null,null,null,null,null,null,null,null,null,null,null,null,null,null,null,null,null,null,null,"groene salade van groene asperge, doperwten, courgette en rucola"]
[null,null,"Kandidaatnaam:",null,null,{"$f":"gerechten!F3","v":0},null,null,null,null,null,null,null,null,null,null,null,null,null,"werkblad 3",null,null,null,"tomatentartaar met augurk en mosterd"]
[null,null,"Kandidaatnummer:",null,null,{"$f":"gerechten!F4","v":0},null,null,null,null,null,null,null,null,null,null,null,null,null,null,null,null,null,"gebakken tempeh-saté met warme gele rijst"]
[]
[null,null,"voorgerechten",null,null,null,null,null,null,null,null,null,"tussengerechten",null,null,null,null,null,null,null,null,null,null,"maak keuze"]
[null,null,null,null,null,null,null,null,null,null,null,null,null,null,null,null,null,null,null,null,null,null,null,"doperwtensoep met bosui en munt "]
[null,null,null,null,null,null,null,null,null,null,null,null,null,null,null,null,null,null,null,null,null,null,null,"koude salade van courgette-spaghetti met pesto en tomaten"]
[null,null,null,null,null,null,null,null,null,null,null,null,null,null,null,null,null,null,null,null,null,null,null,"bloemkoolsoep met crostini"]
[]
[null,null,null,null,null,null,null,null,null,null,null,null,null,null,null,null,null,null,null,null,null,null,null,"maak keuze"]
[null,null,null,null,null,null,null,null,null,null,null,null,null,null,null,null,null,null,null,null,null,null,null,"bloemkool-maistaart met cherrytomaatjes en mosterd"]
[null,null,null,null,null,null,null,null,null,null,null,null,null,null,null,null,null,null,null,null,null,null,null,"oosterse aubergine-schotel met soja en sesam uit de oven"]
[null,null,null,null,null,null,null,null,null,null,null,null,null,null,null,null,null,null,null,null,null,null,null,"met kaas gevulde ravioli in tomaten-kruidensaus"]
[]
[null,null,null,null,null,null,null,null,null,null,null,null,null,null,null,null,null,null,null,null,null,null,null,"maak keuze"]
[null,null,"groene salade van groene asperge, doperwten, courgette en rucola",null,null,"tomatentartaar met augurk en mosterd",null,null,"gebakken tempeh-saté met warme gele rijst",null,null,null,"doperwtensoep met\nbosui en munt ",null,null,"koude salade van courgette- spaghetti met pesto en tomaten",null,null,"bloemkoolsoep\nmet crostini",null,null,null,null,"panna cotta met rode zomervruchten "]
[null,null,null,null,null,null,null,null,null,null,null,null,null,null,null,null,null,null,null,null,null,null,null,"kaasplankje met pruimencompote"]
[null,null,null,null,null,null,null,null,null,null,null,null,null,null,null,null,null,null,null,null,null,null,null,"chocoladetaart met karamel en amandel"]
[]
[null,null,"hoofdgerechten",null,null,null,null,null,null,null,null,null,"nagerechten"]
[]
[]
[]
[]
[]
[]
[]
[]
[]
[]
[null,null,"bloemkool-maistaart\nmet cherrytomaatjes en mosterd",null,null,"oosterse aubergine-schotel met soja en sesam uit de oven",null,null,"met kaas gevulde ravioli in tomaten-kruidensaus",null,null,null,"panna cotta met rode zomervruchten ",null,null,"kaasplankje met pruimencompote",null,null,"chocoladetaart met karamel en amandel"]
[]
[]
[]
[]
[]
[null,null,"menu 1"]
[null,null,"koud voorgerecht",null,null,"maak keuze"]
[null,null,"tussengerecht",null,null,"maak keuze"]
[null,null,"hoofdgerecht",null,null,"maak keuze"]
[null,null,"nagerecht",null,null,"maak keuze"]
[]
[]
[null,null,"menu 2"]
[null,null,"koud voorgerecht",null,null,"maak keuze"]
[null,null,"tussengerecht",null,null,"maak keuze"]
[null,null,"hoofdgerecht",null,null,"maak keuze"]
[null,null,"nagerecht",null,null,"maak keuze"]

{"sheet":"printblad","index":3,"n_rows":52,"n_cols":6,"rows_kept":52,"cut":false,"hidden":true,"merged":[[5,2,5,3],[14,2,14,3],[23,2,23,3],[24,2,24,3],[25,2,25,3],[20,2,20,3],[21,2,21,3],[6,2,6,3],[7,2,7,3],[8,2,8,3],[9,2,9,3],[10,2,10,3],[11,2,11,3],[12,2,12,3],[15,2,15,3],[16,2,16,3],[17,2,17,3],[18,2,18,3],[19,2,19,3],[40,2,40,3],[47,2,47,3],[34,2,34,3],[35,2,35,3],[36,2,36,3],[37,2,37,3],[28,2,28,3],[29,2,29,3],[26,2,26,3],[27,2,27,3],[31,2,31,3],[32,2,32,3],[33,2,33,3]]}
[]
[]
[null,null,{"$f":"gerechten!C3","v":"Naam"},{"$f":"gerechten!F3","v":0}]
[null,null,{"$f":"gerechten!C4","v":"Klas"},{"$f":"gerechten!F4","v":0}]
[]
[null,null,"voorgerechten",null,"gerechten","ingrediënten"]
[null,null,{"$f":"gerechten!C17","v":"bieten-carpaccio met geitenkaas en spekjes"},null,{"$f":"IF(gerechten!D$21=\"ü\",\"geschikt\",\"ongeschikt\")","v":"ongeschikt"}]
[null,null,{"$f":"gerechten!F17","v":"spruitjessalade met honing-mosterddressing en walnoten"},null,{"$f":"IF(gerechten!G$21=\"ü\",\"geschikt\",\"ongeschikt\")","v":"ongeschikt"},{"$f":"IF(ingrediënten!D$21=\"ü\",\"geschikt\",\"ongeschikt\")","v":"ongeschikt"}]
[null,null,{"$f":"gerechten!I17","v":"Japanse salade van avocado, zalm, rijst en soja"},null,{"$f":"IF(gerechten!J$21=\"ü\",\"geschikt\",\"ongeschikt\")","v":"ongeschikt"}]
[null,null,{"$f":"gerechten!L17","v":"groene salade van groene asperge, doperwten, courgette en rucola"},null,{"$f":"IF(gerechten!M$21=\"ü\",\"geschikt\",\"ongeschikt\")","v":"ongeschikt"},{"$f":"IF(ingrediënten!G$21=\"ü\",\"geschikt\",\"ongeschikt\")","v":"ongeschikt"}]
[null,null,{"$f":"gerechten!O17","v":"veldsla met groene asperges, komkommer en kruidencrème "},null,{"$f":"IF(gerechten!P$21=\"ü\",\"geschikt\",\"ongeschikt\")","v":"ongeschikt"},{"$f":"IF(ingrediënten!J$21=\"ü\",\"geschikt\",\"ongeschikt\")","v":"ongeschikt"}]
[null,null,{"$f":"gerechten!R17","v":"tomatentartaar met augurk en mosterd"},null,{"$f":"IF(gerechten!S$21=\"ü\",\"geschikt\",\"ongeschikt\")","v":"ongeschikt"},{"$f":"IF(ingrediënten!M$21=\"ü\",\"geschikt\",\"ongeschikt\")","v":"ongeschikt"}]
[null,null,{"$f":"gerechten!U17","v":"gebakken tempeh-saté met warme gele rijst"},null,{"$f":"IF(gerechten!V$21=\"ü\",\"geschikt\",\"ongeschikt\")","v":"ongeschikt"},{"$f":"IF(ingrediënten!P$21=\"ü\",\"geschikt\",\"ongeschikt\")","v":"ongeschikt"}]
[]
[null,null,"tussengerechten",null,"gerechten","ingrediënten"]
[null,null,{"$f":"gerechten!C36","v":"doperwtensoep met \nbosui en munt "},null,{"$f":"IF(gerechten!D$40=\"ü\",\"geschikt\",\"ongeschikt\")","v":"ongeschikt"},{"$f":"IF(ingrediënten!D$40=\"ü\",\"geschikt\",\"ongeschikt\")","v":"ongeschikt"}]
[null,null,{"$f":"gerechten!F36","v":"hartige taart van prei, venkel en spekjes"},null,{"$f":"IF(gerechten!G$40=\"ü\",\"geschikt\",\"ongeschikt\")","v":"ongeschikt"}]
[null,null,{"$f":"gerechten!I36","v":"pompoensoep met zoete aardappel en kurkuma"},null,{"$f":"IF(gerechten!J$40=\"ü\",\"geschikt\",\"ongeschikt\")","v":"ongeschikt"},{"$f":"IF(ingrediënten!G$40=\"ü\",\"geschikt\",\"ongeschikt\")","v":"ongeschikt"}]
[null,null,{"$f":"gerechten!L36","v":"koude salade van courgette-spaghetti met pesto en tomaten"},null,{"$f":"IF(gerechten!M$40=\"ü\",\"geschikt\",\"ongeschikt\")","v":"ongeschikt"},{"$f":"IF(ingrediënten!J$40=\"ü\",\"geschikt\",\"ongeschikt\")","v":"ongeschikt"}]
[null,null,{"$f":"gerechten!O36","v":"bloemkoolsoep \nmet crostini"},null,{"$f":"IF(gerechten!P$40=\"ü\",\"geschikt\",\"ongeschikt\")","v":"ongeschikt"},{"$f":"IF(ingrediënten!M$40=\"ü\",\"geschikt\",\"ongeschikt\")","v":"ongeschikt"}]
[null,null,{"$f":"gerechten!R36","v":"schorseneren-soep \nmet croutons"},null,{"$f":"IF(gerechten!S$40=\"ü\",\"geschikt\",\"ongeschikt\")","v":"ongeschikt"},{"$f":"IF(ingrediënten!P$40=\"ü\",\"geschikt\",\"ongeschikt\")","v":"ongeschikt"}]
[null,null,{"$f":"gerechten!U36","v":"soep van gepofte mais \nmet blokjes gerookte kip"},null,{"$f":"IF(gerechten!V$40=\"ü\",\"geschikt\",\"ongeschikt\")","v":"ongeschikt"}]
[]
[null,null,"hoofdgerechten",null,"gerechten","ingrediënten"]
[null,null,{"$f":"gerechten!C55","v":"bloemkool-maistaart \nmet cherrytomaatjes en mosterd"},null,{"$f":"IF(gerechten!D$59=\"ü\",\"geschikt\",\"ongeschikt\")","v":"ongeschikt"},{"$f":"IF(ingrediënten!D$59=\"ü\",\"geschikt\",\"ongeschikt\")","v":"ongeschikt"}]
[null,null,{"$f":"gerechten!F55","v":"pizza met witlof, brie, honing en cashewnoten"},null,{"$f":"IF(gerechten!G$59=\"ü\",\"geschikt\",\"ongeschikt\")","v":"ongeschikt"},{"$f":"IF(ingrediënten!G$59=\"ü\",\"geschikt\",\"ongeschikt\")","v":"ongeschikt"}]
[null,null,{"$f":"gerechten!I55","v":"oosterse aubergine-schotel met soja en sesam uit de oven"},null,{"$f":"IF(gerechten!J$59=\"ü\",\"geschikt\",\"ongeschikt\")","v":"ongeschikt"},{"$f":"IF(ingrediënten!J$59=\"ü\",\"geschikt\",\"ongeschikt\")","v":"ongeschikt"}]
[null,null,{"$f":"gerechten!L55","v":"gepocheerde zalm met wortel, broccoli, aardappel-puree en wittewijnsaus"},null,{"$f":"IF(gerechten!M$59=\"ü\",\"geschikt\",\"ongeschikt\")","v":"ongeschikt"}]
[null,null,{"$f":"gerechten!O55","v":"tagliatelle met garnalen, basilicum en roomsaus"},null,{"$f":"IF(gerechten!P$59=\"ü\",\"geschikt\",\"ongeschikt\")","v":"ongeschikt"}]
[null,null,{"$f":"gerechten!R55","v":"met kaas gevulde ravioli in tomaten-kruidensaus"},null,{"$f":"IF(gerechten!S$59=\"ü\",\"geschikt\",\"ongeschikt\")","v":"ongeschikt"},{"$f":"IF(ingrediënten!M$59=\"ü\",\"geschikt\",\"ongeschikt\")","v":"ongeschikt"}]
[]
[null,null,"nagerechten",null,"gerechten","ingredienten"]
[null,null,{"$f":"ingrediënten!C74","v":"gepocheerde peer \nmet vanille-ijs en amandelkruimels"},null,null,{"$f":"IF(ingrediënten!D$78=\"ü\",\"geschikt\",\"ongeschikt\")","v":"ongeschikt"}]
[null,null,{"$f":"ingrediënten!F74","v":"panna cotta met rode zomervruchten "},null,null,{"$f":"IF(ingrediënten!G$78=\"ü\",\"geschikt\",\"ongeschikt\")","v":"ongeschikt"}]
[null,null,{"$f":"ingrediënten!I74","v":"taartje van vijgen"},null,null,{"$f":"IF(ingrediënten!J$78=\"ü\",\"geschikt\",\"ongeschikt\")","v":"ongeschikt"}]
[null,null,{"$f":"ingrediënten!L74","v":"cheesecake appel en karamel"},null,null,{"$f":"IF(ingrediënten!M$78=\"ü\",\"geschikt\",\"ongeschikt\")","v":"ongeschikt"}]
[null,null,{"$f":"ingrediënten!O74","v":"kaasplankje met pruimencompote"},null,null,{"$f":"IF(ingrediënten!P$78=\"ü\",\"geschikt\",\"ongeschikt\")","v":"ongeschikt"}]
[null,null,{"$f":"ingrediënten!R74","v":"chocoladetaart met karamel en amandel"},null,null,{"$f":"IF(ingrediënten!S$78=\"ü\",\"geschikt\",\"ongeschikt\")","v":"ongeschikt"}]
[]
[]
[null,null,{"$f":"menukeuze!C38","v":"menu 1"}]
[null,null,{"$f":"menukeuze!C39","v":"koud voorgerecht"},{"$f":"menukeuze!F39","v":"maak keuze"}]
[null,null,{"$f":"menukeuze!C40","v":"tussengerecht"},{"$f":"menukeuze!F40","v":"maak keuze"}]
[null,null,{"$f":"menukeuze!C41","v":"hoofdgerecht"},{"$f":"menukeuze!F41","v":"maak keuze"}]
[null,null,{"$f":"menukeuze!C42","v":"nagerecht"},{"$f":"menukeuze!F42","v":"maak keuze"}]
[]
[]
[null,null,{"$f":"menukeuze!C45","v":"menu 2"}]
[null,null,{"$f":"menukeuze!C46","v":"koud voorgerecht"},{"$f":"menukeuze!F46","v":"maak keuze"}]
[null,null,{"$f":"menukeuze!C47","v":"tussengerecht"},{"$f":"menukeuze!F47","v":"maak keuze"}]
[null,null,{"$f":"menukeuze!C48","v":"hoofdgerecht"},{"$f":"menukeuze!F48","v":"maak keuze"}]
[null,null,{"$f":"menukeuze!C49","v":"nagerecht"},{"$f":"menukeuze!F49","v":"maak keuze"}]